fUSD/lending_fUSD_20260515
["ID","MTS","AMOUNT","RATE_DAILY","PERIOD"]
[422343967,1778856639000,-150.0,0.00013992,2]
[422343969,1778856639000,-250.0,0.00014,2]
[422343971,1778856639000,-150.0,0.00014008,2]
[422343973,1778856639000,-150.0,0.00014012,2]
[422343979,1778856639000,-150.0,0.0001404,2]
[422343983,1778856639000,-150.0,0.0001405,2]
[422343986,1778856639000,-150.0,0.00014053,2]
[422343982,1778856639000,-150.0,0.0001405,2]
[422343952,1778856639000,-150.0,0.00013961,2]
[422344051,1778856639000,-150.0,0.00014237,2]
[422344063,1778856639000,-150.0,0.00014276,2]
[422344055,1778856639000,-150.0,0.00014252,2]
[422344114,1778856639000,-150.0,0.00014424,2]
[422344122,1778856639000,-500.0,0.0001443,2]
[422344127,1778856639000,-150.0,0.00014434,2]
[422344116,1778856639000,-150.0,0.00014424,2]
[422344119,1778856639000,-500.0,0.0001443,2]
[422344131,1778856639000,-150.0,0.00014451,2]
[422344129,1778856639000,-150.0,0.00014436,2]
[422344125,1778856639000,-500.0,0.0001443,2]
[422344135,1778856639000,-150.0,0.00014466,2]
[422344133,1778856639000,-150.0,0.00014462,2]
[422344137,1778856639000,-500.0,0.00014473,2]
[422344148,1778856639000,-467.7,0.00014473,2]
[422344112,1778856639000,-48282.51562508,0.00014421,2]
[422344141,1778856639000,-500.0,0.00014473,2]
[422344150,1778856639000,-500.0,0.00014473,2]
[422344160,1778856639000,-500.0,0.00014473,2]
[422344146,1778856639000,-500.0,0.00014473,2]
[422344158,1778856639000,-500.0,0.00014473,2]
[422344156,1778856639000,-500.0,0.00014473,2]
[422344152,1778856639000,-500.0,0.00014473,2]
[422344154,1778856639000,-500.0,0.00014473,2]
[422344162,1778856639000,-840569.4492,0.00014473,2]
[422344164,1778856639000,-150.0,0.00014482,2]
[422344168,1778856639000,-150.0,0.00014487,2]
[422344166,1778856639000,-150.0,0.00014487,2]
[422344047,1778856639000,-150.0,0.00014237,2]
[422344144,1778856639000,-500.0,0.00014473,2]
[422344110,1778856639000,-150.0,0.0001442,2]
[422344139,1778856639000,-500.0,0.00014473,2]
[422344092,1778856639000,-150.0,0.00014359,2]
[422344045,1778856639000,-150.0,0.00014237,2]
[422344100,1778856639000,-150.0,0.00014387,2]
[422344049,1778856639000,-150.0,0.00014237,2]
[422344053,1778856639000,-166.66,0.00014247,2]
[422344059,1778856639000,-48282.51562508,0.00014261,2]
[422344057,1778856639000,-5346.77400745,0.00014256,2]
[422344061,1778856639000,-150.0,0.00014268,2]
[422344065,1778856639000,-150.0,0.00014283,2]
[422344067,1778856639000,-1349.68255164,0.00014284,2]
[422344069,1778856639000,-350.0,0.00014286,2]
[422344073,1778856639000,-150.0,0.00014298,2]
[422344079,1778856639000,-150.0,0.00014313,2]
[422344081,1778856639000,-150.0,0.00014329,2]
[422344071,1778856639000,-150.0,0.00014287,2]
[422344075,1778856639000,-150.0,0.00014299,2]
[422344096,1778856639000,-150.0,0.00014375,2]
[422344077,1778856639000,-150.0,0.00014312,2]
[422344094,1778856639000,-150.0,0.00014362,2]
[422344106,1778856639000,-150.0,0.00014405,2]
[422344088,1778856639000,-150.0,0.00014344,2]
[422344090,1778856639000,-150.0,0.00014355,2]
[422344085,1778856639000,-150.0,0.00014344,2]
[422344104,1778856639000,-150.0,0.0001439,2]
[422344102,1778856639000,-150.0,0.00014387,2]
[422344108,1778856639000,-5346.77400745,0.00014417,2]
[422344083,1778856639000,-159.03342442,0.00014343,2]
[422344098,1778856639000,-166.66,0.00014384,2]
[422344248,1778856640000,-150.0,0.00014696,2]
[422344250,1778856640000,-12059.74969215,0.000147,2]
[422344253,1778856640000,-150.0,0.00014711,2]
[422344239,1778856640000,-150.0,0.0001468,2]
[422344255,1778856640000,-500.0,0.00014712,2]
[422344244,1778856640000,-150.0,0.00014687,2]
[422344218,1778856640000,-150.0,0.00014604,2]
[422344242,1778856640000,-150.0,0.00014687,2]
[422344237,1778856640000,-150.0,0.00014674,2]
[422344257,1778856640000,-2000.0,0.00014713,2]
[422344246,1778856640000,-1349.68255164,0.00014695,2]
[422344259,1778856640000,-13171.3948,0.00014713,2]
[422344286,1778856640000,-150.0,0.00014786,2]
[422344265,1778856640000,-5346.77400745,0.00014739,2]
[422344263,1778856640000,-150.0,0.00014737,2]
[422344267,1778856640000,-500.0,0.0001474,2]
[422344269,1778856640000,-48282.51562508,0.0001474,2]
[422344272,1778856640000,-150.0,0.00014742,2]
[422344282,1778856640000,-150.0,0.00014772,2]
[422344274,1778856640000,-150.0,0.0001475,2]
[422344276,1778856640000,-150.0,0.00014757,2]
[422344278,1778856640000,-150.0,0.00014762,2]
[422344280,1778856640000,-150.0,0.00014772,2]
[422344284,1778856640000,-200.0,0.00014778,2]
[422344224,1778856640000,-150.0,0.00014612,2]
[422344261,1778856640000,-150.0,0.00014726,2]
[422344222,1778856640000,-150.0,0.00014612,2]
[422344182,1778856640000,-150.0,0.00014512,2]
[422344216,1778856640000,-150.0,0.00014592,2]
[422344293,1778856640000,-150.0,0.00014799,2]
[422344180,1778856640000,-5000.0,0.0001451,2]
[422344170,1778856640000,-150.0,0.00014487,2]
[422344184,1778856640000,-150.0,0.00014513,2]
[422344173,1778856640000,-1349.68255164,0.00014489,2]
[422344178,1778856640000,-1680.0,0.00014506,2]
[422344176,1778856640000,-150.0,0.00014497,2]
[422344186,1778856640000,-420.0,0.00014521,2]
[422344188,1778856640000,-150.0,0.00014528,2]
[422344190,1778856640000,-653.65084534,0.00014536,2]
[422344193,1778856640000,-150.0,0.00014537,2]
[422344197,1778856640000,-150.0,0.00014549,2]
[422344235,1778856640000,-150.0,0.00014671,2]
[422344195,1778856640000,-150.0,0.00014543,2]
[422344199,1778856640000,-150.0,0.00014558,2]
[422344203,1778856640000,-150.0,0.00014573,2]
[422344201,1778856640000,-150.0,0.00014558,2]
[422344209,1778856640000,-48282.51562508,0.00014581,2]
[422344213,1778856640000,-150.0,0.00014589,2]
[422344211,1778856640000,-150.0,0.00014587,2]
[422344207,1778856640000,-255.0,0.00014579,2]
[422344226,1778856640000,-150.0,0.00014619,2]
[422344228,1778856640000,-150.0,0.00014635,2]
[422344230,1778856640000,-150.0,0.0001465,2]
[422344233,1778856640000,-150.0,0.00014665,2]
[422344220,1778856640000,-150.0,0.00014612,2]
[422344205,1778856640000,-5346.77400745,0.00014578,2]
[422344291,1778856640000,-150.0,0.00014799,2]
[422344302,1778856640000,-10387.87015155,0.00014829,2]
[422344303,1778856640000,-7127.41122331,0.00014829,2]
[422344358,1778856640000,-150.0,0.00014907,2]
[422344360,1778856640000,-150.0,0.0001491,2]
[422344362,1778856640000,-150.0,0.00014911,2]
[422344364,1778856640000,-615.0837212,0.00014919,2]
[422344366,1778856640000,-150.0,0.00014924,2]
[422344370,1778856640000,-500.0,0.00014928,2]
[422344374,1778856640000,-500.0,0.00014928,2]
[422344368,1778856640000,-150.0,0.00014925,2]
[422344379,1778856640000,-500.0,0.00014928,2]
[422344372,1778856640000,-500.0,0.00014928,2]
[422344377,1778856640000,-500.0,0.00014928,2]
[422344381,1778856640000,-500.0,0.00014928,2]
[422344353,1778856640000,-48282.51562508,0.000149,2]
[422344383,1778856640000,-7992.1685039,0.00014929,2]
[422344395,1778856640000,-151.0,0.00014929,2]
[422344396,1778856640000,-151.0,0.00014929,2]
[422344397,1778856640000,-151.0,0.00014929,2]
[422344398,1778856640000,-151.0,0.00014929,2]
[422344389,1778856640000,-32139.6676246,0.00014929,2]
[422344387,1778856640000,-17457.2107109,0.00014929,2]
[422344295,1778856640000,-150.0,0.00014803,2]
[422344399,1778856640000,-151.0,0.00014929,2]
[422344401,1778856640000,-304.753055,0.00014929,2]
[422344394,1778856640000,-2776.4876673,0.00014929,2]
[422344391,1778856640000,-151.0,0.00014929,2]
[422344403,1778856640000,-304.753055,0.00014929,2]
[422344385,1778856640000,-1341443.0771056,0.00014929,2]
[422344355,1778856640000,-1349.68255164,0.000149,2]
[422344400,1778856640000,-151.0,0.00014929,2]
[422344343,1778856640000,-356.46,0.00014899,2]
[422344351,1778856640000,-5346.77400745,0.000149,2]
[422344299,1778856640000,-150.0,0.00014829,2]
[422344300,1778856640000,-1441.34584473,0.00014829,2]
[422344289,1778856640000,-150.0,0.00014788,2]
[422344305,1778856640000,-10000.0,0.00014829,2]
[422344309,1778856640000,-150.0,0.00014836,2]
[422344307,1778856640000,-150.0,0.00014833,2]
[422344313,1778856640000,-150.0,0.00014849,2]
[422344315,1778856640000,-29964.16918207,0.0001485,2]
[422344321,1778856640000,-200.0,0.00014855,2]
[422344311,1778856640000,-350.0,0.00014837,2]
[422344317,1778856640000,-1000.0,0.0001485,2]
[422344319,1778856640000,-1000.0,0.0001485,2]
[422344297,1778856640000,-150.0,0.00014818,2]
[422344323,1778856640000,-1000.0,0.0001486,2]
[422344325,1778856640000,-150.0,0.00014861,2]
[422344341,1778856640000,-500.0,0.00014899,2]
[422344349,1778856640000,-2069.0,0.000149,5]
[422344337,1778856640000,-150.0,0.00014886,2]
[422344335,1778856640000,-162.0,0.0001488,2]
[422344339,1778856640000,-150.0,0.00014895,2]
[422344333,1778856640000,-162.0,0.0001488,2]
[422344331,1778856640000,-150.0,0.00014879,2]
[422344329,1778856640000,-200.0,0.00014879,2]
[422344327,1778856640000,-150.0,0.00014864,2]
[422344348,1778856640000,-2676.0121,0.000149,2]
[422344345,1778856640000,-500.0,0.00014899,2]
[422344491,1778856641000,-275.90606938,0.00014986,2]
[422344513,1778856641000,-500.0,0.00014999,2]
[422344489,1778856641000,-254.66275453,0.00014986,2]
[422344487,1778856641000,-204.41834298,0.00014986,2]
[422344495,1778856641000,-615.0837212,0.0001499,2]
[422344497,1778856641000,-500.0,0.00014998,2]
[422344499,1778856641000,-500.0,0.00014998,2]
[422344493,1778856641000,-150.0,0.0001499,2]
[422344503,1778856641000,-1090.6312335,0.00014999,5]
[422344515,1778856641000,-500.0,0.00014999,2]
[422344501,1778856641000,-1090.63123349,0.00014999,5]
[422344511,1778856641000,-500.0,0.00014999,2]
[422344505,1778856641000,-1090.63123349,0.00014999,5]
[422344509,1778856641000,-500.0,0.00014999,2]
[422344517,1778856641000,-500.0,0.00014999,2]
[422344519,1778856641000,-646.1247041,0.00014999,2]
[422344529,1778856641000,-500.0,0.00014999,2]
[422344531,1778856641000,-500.0,0.00014999,2]
[422344477,1778856641000,-188.21085344,0.00014986,2]
[422344507,1778856641000,-500.0,0.00014999,2]
[422344474,1778856641000,-150.0,0.00014971,2]
[422344448,1778856641000,-445.341502,0.00014929,2]
[422344485,1778856641000,-156.34451496,0.00014986,2]
[422344405,1778856641000,-304.753055,0.00014929,2]
[422344404,1778856641000,-304.753055,0.00014929,2]
[422344407,1778856641000,-151.0,0.00014929,2]
[422344534,1778856641000,-500.0,0.00014999,2]
[422344438,1778856641000,-445.341502,0.00014929,2]
[422344456,1778856641000,-159.265644,0.00014929,2]
[422344445,1778856641000,-445.341502,0.00014929,2]
[422344461,1778856641000,-159.265644,0.00014929,2]
[422344463,1778856641000,-159.265644,0.00014929,2]
[422344475,1778856641000,-237.15108379,0.00014973,2]
[422344458,1778856641000,-159.265644,0.00014929,2]
[422344450,1778856641000,-445.341502,0.00014929,2]
[422344467,1778856641000,-150.0,0.0001494,2]
[422344465,1778856641000,-151.0,0.00014929,2]
[422344454,1778856641000,-7162.4373883,0.00014929,2]
[422344479,1778856641000,-229.98198189,0.00014986,2]
[422344481,1778856641000,-266.38482168,0.00014986,2]
[422344483,1778856641000,-287.11416309,0.00014986,2]
[422344472,1778856641000,-320.0,0.00014959,2]
[422344469,1778856641000,-150.0,0.00014956,2]
[422344452,1778856641000,-151.0,0.00014929,2]
[422344532,1778856641000,-500.0,0.00014999,2]
[422344409,1778856641000,-151.0,0.00014929,2]
[422344523,1778856641000,-500.0,0.00014999,2]
[422344578,1778856641000,-500.0,0.00014999,2]
[422344574,1778856641000,-500.0,0.00014999,2]
[422344590,1778856641000,-500.0,0.00014999,2]
[422344572,1778856641000,-500.0,0.00014999,2]
[422344588,1778856641000,-500.0,0.00014999,2]
[422344576,1778856641000,-500.0,0.00014999,2]
[422344594,1778856641000,-500.0,0.00014999,2]
[422344607,1778856641000,-500.0,0.00014999,2]
[422344596,1778856641000,-500.0,0.00014999,2]
[422344592,1778856641000,-500.0,0.00014999,2]
[422344609,1778856641000,-500.0,0.00014999,2]
[422344603,1778856641000,-500.0,0.00014999,2]
[422344611,1778856641000,-500.0,0.00014999,2]
[422344613,1778856641000,-500.0,0.00014999,2]
[422344601,1778856641000,-500.0,0.00014999,2]
[422344615,1778856641000,-500.0,0.00014999,2]
[422344619,1778856641000,-500.0,0.00014999,2]
[422344617,1778856641000,-500.0,0.00014999,2]
[422344621,1778856641000,-500.0,0.00014999,2]
[422344538,1778856641000,-500.0,0.00014999,2]
[422344599,1778856641000,-500.0,0.00014999,2]
[422344580,1778856641000,-500.0,0.00014999,2]
[422344605,1778856641000,-500.0,0.00014999,2]
[422344586,1778856641000,-500.0,0.00014999,2]
[422344571,1778856641000,-500.0,0.00014999,2]
[422344527,1778856641000,-500.0,0.00014999,2]
[422344521,1778856641000,-500.0,0.00014999,2]
[422344536,1778856641000,-500.0,0.00014999,2]
[422344525,1778856641000,-500.0,0.00014999,2]
[422344540,1778856641000,-500.0,0.00014999,2]
[422344556,1778856641000,-500.0,0.00014999,2]
[422344558,1778856641000,-500.0,0.00014999,2]
[422344560,1778856641000,-505.28553444,0.00014999,2]
[422344544,1778856641000,-500.0,0.00014999,2]
[422344542,1778856641000,-500.0,0.00014999,2]
[422344546,1778856641000,-500.0,0.00014999,2]
[422344550,1778856641000,-500.0,0.00014999,2]
[422344549,1778856641000,-500.0,0.00014999,2]
[422344554,1778856641000,-500.0,0.00014999,2]
[422344566,1778856641000,-500.0,0.00014999,2]
[422344552,1778856641000,-500.0,0.00014999,2]
[422344564,1778856641000,-500.0,0.00014999,2]
[422344568,1778856641000,-500.0,0.00014999,2]
[422344582,1778856641000,-500.0,0.00014999,2]
[422344562,1778856641000,-500.0,0.00014999,2]
[422344584,1778856641000,-500.0,0.00014999,2]
[422344692,1778856642000,-304.753055,0.00015,2]
[422344690,1778856642000,-304.753055,0.00015,2]
[422344688,1778856642000,-151.0,0.00015,2]
[422344686,1778856642000,-151.0,0.00015,2]
[422344684,1778856642000,-151.0,0.00015,2]
[422344682,1778856642000,-151.0,0.00015,2]
[422344669,1778856642000,-1000.0,0.00015,2]
[422344671,1778856642000,-250.0,0.00015,2]
[422344667,1778856642000,-1000.0,0.00015,2]
[422344700,1778856642000,-3532.64196497,0.00015,2]
[422344663,1778856642000,-5933393.98215906,0.00015,2]
[422344673,1778856642000,-200.0,0.00015,2]
[422344696,1778856642000,-304.753055,0.00015,2]
[422344719,1778856642000,-445.341502,0.00015,2]
[422344698,1778856642000,-1000.0,0.00015,2]
[422344694,1778856642000,-304.753055,0.00015,2]
[422344704,1778856642000,-1000.0,0.00015,2]
[422344706,1778856642000,-1000.0,0.00015,2]
[422344708,1778856642000,-1000.0,0.00015,2]
[422344710,1778856642000,-151.0,0.00015,2]
[422344712,1778856642000,-314.0,0.00015,2]
[422344717,1778856642000,-445.341502,0.00015,2]
[422344714,1778856642000,-2482.51885768,0.00015,2]
[422344716,1778856642000,-445.341502,0.00015,2]
[422344723,1778856642000,-229.320776,0.00015,2]
[422344680,1778856642000,-151.0,0.00015,2]
[422344702,1778856642000,-151.0,0.00015,2]
[422344679,1778856642000,-151.0,0.00015,2]
[422344639,1778856642000,-500.0,0.00014999,2]
[422344677,1778856642000,-151.0,0.00015,2]
[422344623,1778856642000,-500.0,0.00014999,2]
[422344634,1778856642000,-500.0,0.00014999,2]
[422344636,1778856642000,-500.0,0.00014999,2]
[422344625,1778856642000,-500.0,0.00014999,2]
[422344628,1778856642000,-500.0,0.00014999,2]
[422344721,1778856642000,-445.341502,0.00015,2]
[422344642,1778856642000,-300.0,0.00014999,2]
[422344638,1778856642000,-500.0,0.00014999,2]
[422344632,1778856642000,-500.0,0.00014999,2]
[422344630,1778856642000,-500.0,0.00014999,2]
[422344641,1778856642000,-531.58948672,0.00014999,2]
[422344637,1778856642000,-500.0,0.00014999,2]
[422344640,1778856642000,-500.0,0.00014999,2]
[422344643,1778856642000,-666.0,0.00014999,2]
[422344646,1778856642000,-300.0,0.00014999,2]
[422344645,1778856642000,-300.0,0.00014999,2]
[422344647,1778856642000,-300.0,0.00014999,2]
[422344648,1778856642000,-300.0,0.00014999,2]
[422344658,1778856642000,-666.0,0.00014999,2]
[422344652,1778856642000,-300.0,0.00014999,2]
[422344650,1778856642000,-666.0,0.00014999,2]
[422344660,1778856642000,-666.0,0.00014999,2]
[422344656,1778856642000,-300.0,0.00014999,2]
[422344644,1778856642000,-666.0,0.00014999,2]
[422344654,1778856642000,-300.0,0.00014999,2]
[422344661,1778856642000,-2592.0,0.00015,5]
[422344675,1778856642000,-354.25874375,0.00015,2]
[422344665,1778856642000,-379.34,0.00015,2]
[422344727,1778856642000,-441.98303079,0.00015,2]
[422344627,1778856642000,-500.0,0.00014999,2]
[422344729,1778856642000,-240.87123901,0.00015,2]
[422344797,1778856642000,-300.0,0.00015239,2]
[422344799,1778856642000,-300.0,0.00015239,2]
[422344793,1778856642000,-15000.0,0.00015208,2]
[422344803,1778856642000,-183.9169181,0.00015239,2]
[422344801,1778856642000,-300.0,0.00015239,2]
[422344805,1778856642000,-300.0,0.00015239,2]
[422344807,1778856642000,-300.0,0.00015239,2]
[422344819,1778856642000,-300.0,0.00015419,2]
[422344817,1778856642000,-166.51,0.00015357,2]
[422344809,1778856642000,-15000.0,0.0001524,2]
[422344825,1778856642000,-15000.0,0.0001542,2]
[422344821,1778856642000,-300.0,0.00015419,2]
[422344823,1778856642000,-300.0,0.00015419,2]
[422344811,1778856642000,-200.0,0.00015301,2]
[422344815,1778856642000,-350.0,0.0001531,2]
[422344813,1778856642000,-5000.01,0.00015304,2]
[422344828,1778856642000,-180.27312146,0.00015449,2]
[422344830,1778856642000,-200.0,0.00015455,2]
[422344831,1778856642000,-1750.24,0.00015464,2]
[422344844,1778856642000,-350.0,0.0001562,2]
[422344838,1778856642000,-164.16086875,0.00015504,2]
[422344836,1778856642000,-1983.0,0.000155,3]
[422344847,1778856642000,-2000.0,0.00015651,2]
[422344841,1778856642000,-200.0,0.00015609,2]
[422344834,1778856642000,-4630.77,0.00015464,2]
[422344839,1778856642000,-350.0,0.00015517,2]
[422344731,1778856642000,-159.265644,0.00015,2]
[422344791,1778856642000,-666.0,0.00015207,2]
[422344795,1778856642000,-5000.01,0.00015229,2]
[422344849,1778856642000,-433.0,0.00015791,2]
[422344786,1778856642000,-300.0,0.00015207,2]
[422344788,1778856642000,-666.0,0.00015207,2]
[422344725,1778856642000,-200.0,0.00015,2]
[422344733,1778856642000,-159.265644,0.00015,2]
[422344742,1778856642000,-151.0,0.00015,2]
[422344738,1778856642000,-308.0,0.00015,2]
[422344737,1778856642000,-159.265644,0.00015,2]
[422344745,1778856642000,-240.44,0.00015068,2]
[422344747,1778856642000,-328.67857,0.00015068,2]
[422344750,1778856642000,-328.67857,0.00015068,2]
[422344741,1778856642000,-1745.68681333,0.00015,2]
[422344748,1778856642000,-328.67857,0.00015068,2]
[422344752,1778856642000,-328.67857,0.00015068,2]
[422344754,1778856642000,-328.67857,0.00015068,2]
[422344756,1778856642000,-328.67857,0.00015068,2]
[422344735,1778856642000,-159.265644,0.00015,2]
[422344760,1778856642000,-328.67857,0.00015068,2]
[422344758,1778856642000,-328.67857,0.00015068,2]
[422344782,1778856642000,-300.0,0.00015207,2]
[422344775,1778856642000,-300.0,0.00015207,2]
[422344774,1778856642000,-300.0,0.00015207,2]
[422344778,1778856642000,-300.0,0.00015207,2]
[422344780,1778856642000,-666.0,0.00015207,2]
[422344767,1778856642000,-5000.02,0.00015195,2]
[422344763,1778856642000,-200.0,0.0001515,2]
[422344769,1778856642000,-151.0,0.000152,2]
[422344761,1778856642000,-6111.0,0.00015116,2]
[422344784,1778856642000,-300.0,0.00015207,2]
[422344772,1778856642000,-300.0,0.00015207,2]
[422344765,1778856642000,-5000.01,0.00015179,2]
[422344932,1778856643000,-3542.0,0.000164,2]
[422344909,1778856643000,-150.0,0.00016393,2]
[422344913,1778856643000,-300.0,0.00016399,2]
[422344936,1778856643000,-281.15,0.000164,2]
[422344940,1778856643000,-439.266,0.000164,2]
[422344915,1778856643000,-379.34,0.000164,2]
[422344929,1778856643000,-656.181,0.000164,2]
[422344938,1778856643000,-1223.0,0.000164,2]
[422344927,1778856643000,-1354.0,0.000164,2]
[422344943,1778856643000,-3631.0,0.000164,2]
[422344911,1778856643000,-163.0,0.00016393,2]
[422344954,1778856643000,-166.309263,0.00016438,2]
[422344945,1778856643000,-1350.9,0.00016438,2]
[422344947,1778856643000,-447.77769107,0.00016438,2]
[422344958,1778856643000,-166.309263,0.00016438,2]
[422344962,1778856643000,-166.309263,0.00016438,2]
[422344960,1778856643000,-166.309263,0.00016438,2]
[422344951,1778856643000,-271.733561,0.00016438,2]
[422344956,1778856643000,-166.309263,0.00016438,2]
[422344969,1778856643000,-166.309263,0.00016438,2]
[422344907,1778856643000,-150.0,0.00016393,2]
[422344967,1778856643000,-166.309263,0.00016438,2]
[422344934,1778856643000,-1270.0,0.000164,2]
[422344905,1778856643000,-150.0,0.00016393,2]
[422344863,1778856643000,-268.0,0.00016077,2]
[422344903,1778856643000,-150.0,0.00016393,2]
[422344949,1778856643000,-151.0,0.00016438,2]
[422344851,1778856643000,-166.19,0.00015903,2]
[422344853,1778856643000,-341.0,0.0001592,2]
[422344855,1778856643000,-2351.0,0.00015956,2]
[422344867,1778856643000,-150.0,0.00016091,2]
[422344869,1778856643000,-235.0,0.00016091,2]
[422344875,1778856643000,-237.0,0.000161,2]
[422344861,1778856643000,-350.0,0.00016073,2]
[422344873,1778856643000,-150.0,0.000161,2]
[422344859,1778856643000,-300.0,0.00016,2]
[422344865,1778856643000,-150.0,0.00016091,2]
[422344871,1778856643000,-150.0,0.000161,2]
[422344880,1778856643000,-350.0,0.00016126,2]
[422344878,1778856643000,-3622.93,0.00016116,2]
[422344884,1778856643000,-200.0,0.00016339,2]
[422344899,1778856643000,-200.0,0.00016339,2]
[422344888,1778856643000,-200.0,0.00016339,2]
[422344895,1778856643000,-200.0,0.00016339,2]
[422344882,1778856643000,-2757.0,0.00016265,2]
[422344893,1778856643000,-200.0,0.00016339,2]
[422344886,1778856643000,-200.0,0.00016339,2]
[422344901,1778856643000,-217.0,0.00016339,2]
[422344890,1778856643000,-200.0,0.00016339,2]
[422344897,1778856643000,-200.0,0.00016339,2]
[422344964,1778856643000,-166.309263,0.00016438,2]
[422344986,1778856643000,-362.901252,0.00016438,2]
[422344973,1778856643000,-362.901252,0.00016438,2]
[422345023,1778856643000,-151.0,0.00016895,2]
[422345032,1778856643000,-151.0,0.00016895,2]
[422345028,1778856643000,-151.0,0.00016895,2]
[422345024,1778856643000,-151.0,0.00016895,2]
[422345034,1778856643000,-151.0,0.00016895,2]
[422345044,1778856643000,-151.0,0.00016895,2]
[422345045,1778856643000,-151.0,0.00016895,2]
[422345036,1778856643000,-151.0,0.00016895,2]
[422345041,1778856643000,-151.0,0.00016895,2]
[422345037,1778856643000,-151.0,0.00016895,2]
[422345022,1778856643000,-151.0,0.00016895,2]
[422345039,1778856643000,-151.0,0.00016895,2]
[422345050,1778856643000,-151.0,0.00016895,2]
[422345049,1778856643000,-151.0,0.00016895,2]
[422345060,1778856643000,-151.0,0.00016895,2]
[422345052,1778856643000,-151.0,0.00016895,2]
[422345062,1778856643000,-151.0,0.00016895,2]
[422345056,1778856643000,-236.30505236,0.00016895,2]
[422345054,1778856643000,-152.0,0.00016895,2]
[422345059,1778856643000,-151.0,0.00016895,2]
[422345057,1778856643000,-151.0,0.00016895,2]
[422344971,1778856643000,-362.901252,0.00016438,2]
[422345047,1778856643000,-151.0,0.00016895,2]
[422345027,1778856643000,-151.0,0.00016895,2]
[422345042,1778856643000,-151.0,0.00016895,2]
[422345030,1778856643000,-151.0,0.00016895,2]
[422344984,1778856643000,-362.901252,0.00016438,2]
[422345025,1778856643000,-151.0,0.00016895,2]
[422344975,1778856643000,-362.901252,0.00016438,2]
[422344982,1778856643000,-362.901252,0.00016438,2]
[422344993,1778856643000,-546.0,0.00016595,2]
[422344988,1778856643000,-722.861,0.000165,10]
[422344977,1778856643000,-362.901252,0.00016438,2]
[422344980,1778856643000,-362.901252,0.00016438,2]
[422344997,1778856643000,-196.84,0.00016712,2]
[422344999,1778856643000,-496.38,0.00016826,2]
[422344995,1778856643000,-159.48,0.00016696,2]
[422345005,1778856643000,-174.61919141,0.00016895,2]
[422344990,1778856643000,-335.22,0.00016512,2]
[422345033,1778856643000,-151.0,0.00016895,2]
[422345011,1778856643000,-200.0,0.00016895,2]
[422345009,1778856643000,-666.63803582,0.00016895,2]
[422345001,1778856643000,-500.0,0.00016895,2]
[422345014,1778856643000,-360.96183467,0.00016895,2]
[422345007,1778856643000,-500.0,0.00016895,2]
[422345016,1778856643000,-242.15909246,0.00016895,2]
[422345018,1778856643000,-578.20924308,0.00016895,2]
[422345020,1778856643000,-187.78006525,0.00016895,2]